bitfinex/quotes_BTCUSD_20250730
["timestamp","ask_amount","ask_price","bid_price","bid_amount"]
[1753887631791,0.06569435,118900.0,118890.0,0.1544799]
[1753887632000,0.06569435,118900.0,118890.0,0.20737528]
[1753887632214,0.06569435,118900.0,118890.0,0.30141806]
[1753887632431,0.06569435,118900.0,118890.0,0.18606806]
[1753887633091,0.06569435,118900.0,118890.0,0.18706806]
[1753887633333,0.06871435,118900.0,118890.0,0.05218806]
[1753887633557,0.06871435,118900.0,118890.0,0.05429084]
[1753887633784,0.06569435,118900.0,118890.0,0.05429084]
[1753887634004,0.06669435,118900.0,118890.0,0.05429084]
[1753887634486,0.06669435,118900.0,118890.0,0.02739024]
[1753887634487,0.06971435,118900.0,118890.0,0.02739024]
[1753887634715,0.40971435,118900.0,118890.0,0.00156728]
[1753887634935,0.40249435,118890.0,118880.0,0.003]
[1753887635159,0.75120113,118890.0,118880.0,1e-08]
[1753887635381,0.44674435,118890.0,118880.0,1e-08]
[1753887636090,0.06551435,118890.0,118880.0,1e-08]
[1753887636564,0.10727998,118890.0,118880.0,1e-08]
[1753887637937,0.45598676,118890.0,118880.0,1e-08]
[1753887638170,0.45545113,118890.0,118880.0,1e-08]
[1753887638810,0.06551435,118890.0,118880.0,1e-08]
[1753887639025,0.19873435,118890.0,118880.0,1e-08]
[1753887639572,0.24298435,118890.0,118880.0,1e-08]
[1753887639804,0.59169113,118890.0,118880.0,1e-08]
[1753887640508,0.24298435,118890.0,118880.0,1e-08]
[1753887641236,0.06551435,118890.0,118880.0,1e-08]
[1753887641489,0.20280998,118890.0,118880.0,1e-08]
[1753887641728,0.19925435,118890.0,118880.0,1e-08]
[1753887642850,0.20227435,118890.0,118880.0,1e-08]
[1753887643526,0.20102,118890.0,118880.0,1e-08]
[1753887643757,0.06249435,118890.0,118880.0,0.11535001]
[1753887643971,0.03219435,118890.0,118880.0,0.11535001]
[1753887644177,0.03219435,118890.0,118880.0,0.11745297]
[1753887645715,0.05109435,118890.0,118880.0,0.11745297]
[1753887645949,0.05109435,118890.0,118880.0,0.28568984]
[1753887646175,0.05,118890.0,118880.0,0.88169563]
[1753887646396,0.05,118890.0,118880.0,0.94509563]
[1753887646613,0.05,118890.0,118880.0,0.94509599]
[1753887646834,0.05,118890.0,118880.0,0.92140747]
[1753887647052,0.05,118890.0,118880.0,0.92981881]
[1753887647285,0.05,118890.0,118880.0,0.96001881]
[1753887647519,0.05,118890.0,118880.0,0.37119418]
[1753887647948,0.05,118890.0,118880.0,0.50779418]
[1753887648176,0.05,118890.0,118880.0,0.88173556]
[1753887648390,0.05,118890.0,118880.0,0.91193556]
[1753887648641,0.05,118890.0,118880.0,0.94273556]
[1753887648884,0.05,118890.0,118880.0,0.94473556]
[1753887649563,0.05,118890.0,118880.0,0.96218458]
[1753887650642,0.05,118890.0,118880.0,0.98609022]
[1753887650858,1e-08,118890.0,118880.0,1.32409022]
[1753887651082,1e-08,118890.0,118880.0,1.699797]
[1753887651779,1e-08,118890.0,118880.0,1.00238344]
[1753887652009,1e-08,118890.0,118880.0,1.699797]
[1753887652914,1e-08,118890.0,118880.0,1.697797]
[1753887653129,1e-08,118890.0,118880.0,1.701797]
[1753887653341,1e-08,118890.0,118880.0,1.565197]
[1753887653567,1e-08,118890.0,118880.0,1.21649022]
[1753887653828,1e-08,118890.0,118880.0,0.96406457]
[1753887654048,1e-08,118890.0,118880.0,0.82758457]
[1753887654279,1e-08,118890.0,118880.0,0.96406457]
[1753887654918,1e-08,118890.0,118880.0,0.82758457]
[1753887655184,1e-08,118890.0,118880.0,0.91573555]
[1753887655449,1e-08,118890.0,118880.0,0.51159417]
[1753887655642,1e-08,118890.0,118880.0,0.54211054]
[1753887655855,1e-08,118890.0,118880.0,0.26512601]
[1753887656132,1e-08,118890.0,118880.0,0.53297068]
[1753887656381,1e-08,118890.0,118880.0,0.51914778]
[1753887656624,1e-08,118890.0,118880.0,0.51914764]
[1753887656873,1e-08,118890.0,118880.0,0.51614764]
[1753887657111,1e-08,118890.0,118880.0,0.5295592]
[1753887657357,1e-08,118890.0,118880.0,0.5463821]
[1753887657602,1e-08,118890.0,118880.0,0.89804838]
[1753887657831,1e-08,118890.0,118880.0,0.9104974]
[1753887658298,1e-08,118890.0,118880.0,0.9124974]
[1753887658782,1e-08,118890.0,118880.0,0.9104974]
[1753887659267,1e-08,118890.0,118880.0,0.90208606]
[1753887659272,1e-08,118890.0,118880.0,0.9104974]
[1753887659506,1e-08,118890.0,118880.0,0.9124174]
[1753887659744,1e-08,118890.0,118880.0,0.90400606]
[1753887659987,1e-08,118890.0,118880.0,0.54392787]
[1753887660445,0.37189436,118890.0,118880.0,0.005]
[1753887660662,5.88398802,118890.0,118880.0,0.005]
[1753887660875,5.93492757,118890.0,118880.0,0.005]
[1753887661095,6.01940487,118890.0,118880.0,0.005]
[1753887661322,6.04307544,118890.0,118880.0,0.005]
[1753887661540,5.69436866,118890.0,118880.0,0.005]
[1753887661796,5.69356866,118890.0,118880.0,0.005]
[1753887661991,0.69356866,118890.0,118880.0,0.005]
[1753887662198,0.70197915,118890.0,118880.0,0.005]
[1753887662414,0.70197915,118890.0,118880.0,0.003]
[1753887662635,1.06850742,118890.0,118880.0,0.003]
[1753887662903,1.06009657,118890.0,118880.0,0.003]
[1753887663132,0.69356866,118890.0,118880.0,0.003]
[1753887663351,0.69648866,118890.0,118880.0,0.003]
[1753887663563,0.56040866,118890.0,118880.0,0.003]
[1753887663775,0.0313,118880.0,118860.0,0.003]
[1753887664004,0.41423,118880.0,118860.0,0.003]
[1753887664675,0.44543,118880.0,118860.0,0.003]
[1753887665092,0.44543,118880.0,118860.0,0.17126494]
[1753887665303,0.0307,118870.0,118860.0,0.003]
[1753887666210,0.79526676,118870.0,118860.0,0.003]
[1753887666444,0.79473113,118870.0,118860.0,0.003]
[1753887666742,0.44651003,118870.0,118860.0,0.003]
[1753887667016,0.34158003,118870.0,118860.0,0.28143282]
[1753887667245,0.00048568,118870.0,118860.0,0.74085602]
[1753887667492,0.00148568,118870.0,118860.0,0.75222878]
[1753887667723,0.00148568,118870.0,118860.0,0.81522878]
[1753887667938,0.00148568,118870.0,118860.0,0.92102878]
[1753887668151,0.00148568,118870.0,118860.0,0.88842878]
[1753887669128,0.00148568,118870.0,118860.0,0.91902878]
[1753887669644,0.00148568,118870.0,118860.0,0.94952878]
[1753887669895,0.00148568,118870.0,118860.0,0.91902878]
[1753887670134,0.00148568,118870.0,118860.0,0.14019764]
[1753887670377,0.07062003,118870.0,118860.0,0.00391764]
[1753887670622,0.45061003,118870.0,118860.0,0.00391764]
[1753887671110,0.93587681,118870.0,118860.0,0.00391764]
[1753887671358,0.58717003,118870.0,118860.0,0.00391764]
[1753887671599,0.40768003,118870.0,118860.0,0.00391764]
[1753887671851,0.37528003,118870.0,118860.0,0.00391764]
[1753887672357,0.34258003,118870.0,118860.0,0.11416764]
[1753887672789,0.34258003,118870.0,118860.0,0.00391764]
[1753887673021,0.37328003,118870.0,118860.0,0.00391764]
[1753887673246,0.34148568,118870.0,118860.0,0.64165602]
[1753887673469,0.34148568,118870.0,118860.0,0.36987012]
[1753887673678,0.34148568,118870.0,118860.0,0.00391764]
[1753887673679,0.34258003,118870.0,118860.0,0.00391764]
[1753887673891,0.40802003,118870.0,118860.0,0.00391764]
[1753887674752,0.40508003,118870.0,118860.0,0.17218282]
[1753887675170,0.40508003,118870.0,118860.0,0.00391764]
[1753887675171,0.79671681,118870.0,118860.0,0.00391764]
[1753887675380,0.93323681,118870.0,118860.0,0.00391764]
[1753887675791,0.58453003,118870.0,118860.0,0.00391764]
[1753887676963,0.93323681,118870.0,118860.0,0.00391764]
[1753887677869,0.95006077,118870.0,118860.0,0.00391764]
[1753887678074,0.94064872,118870.0,118860.0,0.00391764]
[1753887678313,0.93223681,118870.0,118860.0,0.00291764]
[1753887678736,0.58553003,118870.0,118860.0,0.00291764]
[1753887678945,0.93423681,118870.0,118860.0,0.00291764]
[1753887679845,0.58553003,118870.0,118860.0,0.00291764]
[1753887680057,0.93423681,118870.0,118860.0,0.00291764]
[1753887680293,0.58553003,118870.0,118860.0,0.00291764]
[1753887680515,0.93423681,118870.0,118860.0,0.00291764]
[1753887680741,0.58553003,118870.0,118860.0,0.00291764]
[1753887680978,0.79771681,118870.0,118860.0,0.00291764]
[1753887681218,0.54272003,118870.0,118860.0,0.00291764]
[1753887682202,0.58565003,118870.0,118860.0,0.00291764]
[1753887683128,0.93435681,118870.0,118860.0,0.00291764]
[1753887684446,0.54296003,118870.0,118860.0,0.11316764]
[1753887684655,0.00358003,118870.0,118860.0,0.28439282]
[1753887684885,0.34358003,118870.0,118860.0,0.28439282]
[1753887685123,0.00248568,118870.0,118860.0,0.81302906]
[1753887686084,0.00248568,118870.0,118860.0,0.45590952]
[1753887686311,0.00048568,118870.0,118860.0,0.45590952]
[1753887686548,0.00048568,118870.0,118860.0,0.59262952]
[1753887686777,0.00048568,118870.0,118860.0,0.60104235]
[1753887687013,0.00048568,118870.0,118860.0,0.95816189]
[1753887687226,0.00048568,118870.0,118860.0,0.95916189]
[1753887687457,0.00048568,118870.0,118860.0,0.61045511]
[1753887687669,0.00048568,118870.0,118860.0,0.56482938]
[1753887687880,0.00048568,118870.0,118860.0,0.40287012]
[1753887688088,0.00048568,118870.0,118860.0,0.53370903]
[1753887688550,0.00158003,118870.0,118860.0,0.25572764]
[1753887688761,0.00158003,118870.0,118860.0,0.42399282]
[1753887688985,0.00158003,118870.0,118860.0,0.432406]
[1753887689218,0.00048568,118870.0,118860.0,0.45764463]
[1753887689447,0.00048568,118870.0,118860.0,0.95622871]
[1753887689675,0.00048568,118870.0,118860.0,0.55779634]
[1753887689893,0.00048568,118870.0,118860.0,0.5493833]
[1753887690099,0.00048568,118870.0,118860.0,0.37187012]
[1753887690372,0.00048568,118870.0,118860.0,0.29580607]
[1753887690597,0.00048568,118870.0,118860.0,0.42383282]
[1753887691435,0.00048568,118870.0,118860.0,0.25544764]
[1753887691843,0.00048568,118870.0,118860.0,0.42371282]
[1753887692278,0.00048568,118870.0,118860.0,0.43212607]
[1753887692477,0.00048568,118870.0,118860.0,0.44053918]
[1753887692883,0.00048568,118870.0,118860.0,0.42371282]
[1753887693354,0.00158003,118870.0,118860.0,0.25236764]
[1753887693575,0.00158003,118870.0,118860.0,0.11616764]
[1753887693794,0.06458003,118870.0,118860.0,0.14207764]
[1753887694213,0.06511566,118870.0,118860.0,0.14207764]
[1753887694443,0.07245818,118870.0,118860.0,0.00391764]
[1753887694754,0.07245818,118870.0,118860.0,0.13907764]
[1753887694965,0.07245818,118870.0,118860.0,0.14007764]
[1753887695183,0.06458003,118870.0,118860.0,0.14007764]
[1753887695395,0.00158003,118870.0,118860.0,0.41305282]
[1753887695991,0.00158003,118870.0,118860.0,0.41604282]
[1753887696222,0.00158003,118870.0,118860.0,0.24777764]
[1753887696428,0.00158003,118870.0,118860.0,0.41305282]
[1753887696642,0.00158003,118870.0,118860.0,0.41604282]
[1753887697059,0.00158003,118870.0,118860.0,0.41305282]
[1753887697487,0.00158003,118870.0,118860.0,0.42146607]
[1753887697691,0.00158003,118870.0,118860.0,0.41305282]
[1753887698101,0.00158003,118870.0,118860.0,0.10862764]
[1753887698315,0.07365918,118870.0,118860.0,0.24454764]
[1753887698982,0.07365918,118870.0,118860.0,0.13983764]
[1753887699202,0.41365918,118870.0,118860.0,0.00391764]
[1753887699423,0.00109435,118850.0,118840.0,0.17428335]
[1753887699668,0.00109435,118850.0,118840.0,0.31008335]
[1753887700353,0.03259435,118850.0,118840.0,0.13876]
[1753887700581,0.00109435,118850.0,118840.0,0.31214716]
[1753887700796,0.01465491,118850.0,118840.0,0.3110435]
[1753887701004,0.00109435,118850.0,118840.0,0.3130435]
[1753887701454,0.00109435,118850.0,118840.0,0.4177535]
[1753887703070,0.03389435,118850.0,118840.0,0.24647]
[1753887703487,0.03389435,118850.0,118840.0,0.11071]
[1753887703698,0.03389435,118850.0,118840.0,0.006]
[1753887703699,0.42150277,118850.0,118840.0,0.006]
[1753887703911,0.42096714,118850.0,118840.0,0.006]
[1753887704127,0.41793714,118850.0,118840.0,0.1742935]
[1753887704357,0.38683714,118850.0,118840.0,0.2790035]
[1753887704582,0.38683714,118850.0,118840.0,0.11071]
[1753887704786,0.38683714,118850.0,118840.0,0.10971]
[1753887705001,0.41873714,118850.0,118840.0,0.10771]
[1753887705445,0.41873714,118850.0,118840.0,0.10871]
[1753887705671,0.41873714,118850.0,118840.0,0.004]
[1753887706103,0.42176714,118850.0,118840.0,0.004]
[1753887707222,0.41873714,118850.0,118840.0,0.004]
[1753887707441,0.38683714,118850.0,118840.0,0.10871]
[1753887708083,0.38683714,118850.0,118840.0,0.004]
[1753887708289,0.42246714,118850.0,118840.0,0.004]
[1753887708947,0.41943714,118850.0,118840.0,0.004]
[1753887709832,0.55471714,118850.0,118840.0,0.004]
[1753887711175,0.55686714,118850.0,118840.0,0.004]
[1753887713299,0.90860392,118850.0,118840.0,0.004]
[1753887713533,0.94543392,118850.0,118840.0,0.004]
[1753887713779,0.59672714,118850.0,118840.0,0.004]
[1753887714227,0.55989714,118850.0,118840.0,0.004]
[1753887714834,0.59672714,118850.0,118840.0,0.004]
[1753887715540,0.68120444,118850.0,118840.0,0.004]
[1753887716237,1.0467383,118850.0,118840.0,0.004]
[1753887716448,7.13981208,118850.0,118840.0,0.004]
[1753887716676,6.79110614,118850.0,118840.0,0.004]
[1753887716880,6.78269272,118850.0,118840.0,0.004]
[1753887717113,7.13731014,118850.0,118840.0,0.004]
[1753887717349,7.13731014,118850.0,118840.0,0.003]
[1753887717556,6.41166111,118850.0,118840.0,0.003]
[1753887717762,6.4879263,118850.0,118840.0,0.003]
[1753887717979,6.60112641,118850.0,118840.0,0.003]
[1753887718179,6.68162414,118850.0,118840.0,0.003]
[1753887718393,6.69874522,118850.0,118840.0,0.003]
[1753887718527,6.57130245,118850.0,118840.0,0.003]
[1753887718739,6.60495731,118850.0,118840.0,0.003]
[1753887718945,6.59063522,118850.0,118840.0,0.003]
[1753887719150,6.77032845,118850.0,118840.0,0.003]
[1753887719350,6.75099565,118850.0,118840.0,0.003]
[1753887720532,7.12470243,118850.0,118840.0,0.003]
[1753887720742,7.12470191,118850.0,118840.0,0.003]
[1753887720962,7.12470191,118850.0,118820.0,0.003]
[1753887720963,6.55600822,118830.0,118820.0,0.003]
[1753887721205,6.55600822,118830.0,118810.0,3.9]
[1753887721206,0.58083212,118820.0,118810.0,3.9]
[1753887721410,6.57342711,118820.0,118810.0,3.9]
[1753887721621,6.57342711,118820.0,118810.0,3.89157051]
[1753887722094,6.26381322,118820.0,118810.0,3.88314102]
[1753887722314,6.18334392,118820.0,118810.0,3.88314102]
[1753887722542,6.55807142,118820.0,118810.0,3.88314102]
[1753887722764,6.64943387,118820.0,118810.0,3.88314102]
[1753887722987,1.82617228,118820.0,118810.0,3.88314102]
[1753887723210,6.87513647,118820.0,118810.0,3.88314102]
[1753887723658,6.45479757,118820.0,118810.0,3.87471153]
[1753887723911,6.73727487,118820.0,118810.0,3.87471153]
[1753887724145,6.38856809,118820.0,118810.0,3.86628204]
[1753887724393,6.7691686,118820.0,118810.0,3.86628204]
[1753887724632,6.41606851,118820.0,118810.0,3.85785082]
[1753887724875,6.73823458,118820.0,118810.0,3.85785082]
[1753887725124,0.85013555,118820.0,118810.0,3.85785082]
[1753887725352,1.50677472,118820.0,118810.0,3.85785082]
[1753887725569,0.12837798,118820.0,118810.0,3.96107082]
[1753887725759,5.32727361,118820.0,118810.0,3.96107082]
[1753887726000,5.31099379,118820.0,118810.0,3.96107082]
[1753887726211,5.17723379,118820.0,118810.0,3.96400082]
[1753887726451,5.31399379,118820.0,118810.0,3.96400082]
[1753887726665,6.00270057,118820.0,118810.0,3.96107082]
[1753887726886,5.51723379,118820.0,118810.0,3.96107082]
[1753887727101,5.65399379,118820.0,118810.0,3.96107082]
[1753887727522,5.89208762,118820.0,118810.0,3.96107082]
[1753887727755,6.01739217,118820.0,118810.0,3.96107082]
[1753887727999,5.46736539,118820.0,118810.0,3.96400082]
[1753887728222,5.46736539,118820.0,118810.0,3.96107082]
[1753887728223,6.0415588,118820.0,118810.0,3.96107082]
[1753887728442,6.0415588,118820.0,118810.0,3.86085082]
[1753887728443,6.25510469,118820.0,118810.0,3.86085082]
[1753887728663,6.44668896,118820.0,118810.0,3.86085082]
[1753887728889,6.8599566,118820.0,118810.0,3.8524196]
[1753887729100,6.8658572,118820.0,118810.0,3.8524196]
[1753887729308,7.21456268,118820.0,118810.0,3.81194257]
[1753887729536,7.21456268,118820.0,118810.0,3.80994257]
[1753887729750,6.89081567,118820.0,118810.0,3.80151135]
[1753887729931,6.89081567,118820.0,118810.0,3.77200207]
[1753887730173,6.89081567,118820.0,118810.0,3.76357085]
[1753887730386,7.26599421,118820.0,118810.0,3.70733574]
[1753887730595,6.8658559,118820.0,118810.0,3.66939524]
[1753887730807,6.89281567,118820.0,118810.0,3.66939524]
[1753887731027,6.89281567,118820.0,118810.0,3.66096182]
[1753887731238,7.26599421,118820.0,118810.0,3.15714559]
[1753887731455,7.20459421,118820.0,118810.0,2.836321]
[1753887731876,6.51318065,118820.0,118810.0,2.79400559]
[1753887732114,7.22177102,118820.0,118810.0,2.78557217]
[1753887732328,7.17612245,118820.0,118810.0,2.78557217]
[1753887732538,7.20659421,118820.0,118810.0,2.74762178]
[1753887732778,6.0790384,118820.0,118810.0,2.81548453]
[1753887732995,6.08300061,118820.0,118810.0,2.80705111]
[1753887733207,5.71301653,118820.0,118810.0,2.80705111]
[1753887733427,6.19567331,118820.0,118810.0,2.90183769]
[1753887733641,6.53567331,118820.0,118810.0,2.79861769]
[1753887733855,6.51367331,118820.0,118810.0,2.79018427]
[1753887734078,6.46123061,118820.0,118810.0,2.79018427]
[1753887734288,6.62011061,118820.0,118810.0,2.78175085]
[1753887734505,6.62011061,118820.0,118810.0,2.77431743]
[1753887734720,6.61611061,118820.0,118810.0,2.77431743]
[1753887734940,6.61611061,118820.0,118810.0,2.69802126]
[1753887735164,6.61611061,118820.0,118810.0,2.93663401]
[1753887735165,5.36672421,118820.0,118810.0,2.93663401]
[1753887735426,5.28197199,118820.0,118810.0,2.93663401]
[1753887735649,5.97908975,118820.0,118810.0,2.93663401]
[1753887735871,5.97908975,118820.0,118810.0,2.83344126]
[1753887735872,6.00875324,118820.0,118810.0,2.83344126]
[1753887736100,6.39773221,118820.0,118810.0,2.69802126]
[1753887736318,6.40131095,118820.0,118810.0,2.69059097]
[1753887736534,5.88374799,118820.0,118810.0,2.79381097]
[1753887736762,5.29532738,118820.0,118810.0,2.85834097]
[1753887736980,5.66086534,118820.0,118810.0,2.85834097]
[1753887737199,0.02996995,118820.0,118810.0,3.17901701]
[1753887737445,0.36996995,118820.0,118810.0,3.1874338]
[1753887737681,0.02996995,118820.0,118810.0,3.17901701]
[1753887737895,0.36996995,118820.0,118810.0,2.92620372]
[1753887738158,5.3710643,118820.0,118810.0,2.85834097]
[1753887738409,5.3710643,118820.0,118810.0,2.85634097]
[1753887738632,5.39760302,118820.0,118810.0,2.86234097]
[1753887738877,0.3730643,118820.0,118810.0,2.87234097]
[1753887739362,0.03096995,118820.0,118810.0,3.55255702]
[1753887739575,0.03096995,118820.0,118810.0,3.56097332]
[1753887739795,0.00076995,118820.0,118810.0,3.70169332]
[1753887740005,0.00076995,118820.0,118810.0,3.34457031]
[1753887740227,0.00076995,118820.0,118810.0,3.33457038]
[1753887740450,0.00076995,118820.0,118810.0,3.32615373]
[1753887740657,0.34076995,118820.0,118810.0,3.08453827]
[1753887741102,0.34076995,118820.0,118810.0,3.24987426]
[1753887741323,0.34,118820.0,118810.0,3.25429105]
[1753887741535,0.34,118820.0,118810.0,3.25187426]
[1753887741756,0.341,118820.0,118810.0,3.26429105]
[1753887741986,0.001,118820.0,118810.0,3.27512435]
[1753887742205,0.001,118820.0,118810.0,3.64566401]
[1753887742430,0.001,118820.0,118810.0,3.26329105]
[1753887742645,0.001,118820.0,118810.0,3.27170777]
[1753887742858,0.001,118820.0,118810.0,3.28012435]
[1753887743081,0.001,118820.0,118810.0,3.28012442]
[1753887743287,0.001,118820.0,118810.0,3.25487426]
[1753887743950,0.001,118820.0,118810.0,3.08653827]
[1753887744167,0.34209435,118820.0,118810.0,2.86534097]
[1753887745924,0.47784,118820.0,118810.0,2.86034097]
[1753887746139,0.47784,118820.0,118810.0,3.03567696]
[1753887746140,0.341,118820.0,118810.0,3.03567696]
[1753887746358,0.13776,118820.0,118810.0,3.47727776]
[1753887746561,0.13776,118820.0,118810.0,3.13698763]
[1753887746775,0.13776,118820.0,118810.0,3.25691426]
[1753887747245,0.13885435,118820.0,118810.0,2.86734097]
[1753887748093,0.13885435,118820.0,118810.0,2.86714937]
[1753887751716,0.14674004,118820.0,118810.0,2.86714937]
[1753887752212,0.14662004,118820.0,118810.0,2.86714937]
[1753887754668,0.00998004,118820.0,118810.0,2.86714937]
[1753887754893,0.14646004,118820.0,118810.0,2.86714937]
[1753887755116,0.14646004,118820.0,118810.0,3.03548536]
[1753887755971,0.48646004,118820.0,118810.0,3.03548536]
[1753887756190,0.48646063,118820.0,118810.0,3.03548536]
[1753887756405,0.48646063,118820.0,118810.0,2.86714937]
[1753887757478,0.48626063,118820.0,118810.0,2.86714937]
[1753887757718,0.69868741,118820.0,118810.0,2.73009937]
[1753887757932,5.96511064,118820.0,118810.0,2.69939937]
[1753887758173,6.00402064,118820.0,118810.0,2.69939937]
[1753887758386,6.17234289,118820.0,118810.0,2.69939937]
[1753887758635,6.2484046,118820.0,118810.0,2.69939937]
[1753887758841,6.2474046,118820.0,118810.0,2.69539937]
[1753887759055,6.09486602,118820.0,118810.0,2.68839937]
[1753887759268,5.75458078,118820.0,118810.0,2.69139937]
[1753887759477,6.27160939,118820.0,118810.0,2.69539937]
[1753887760110,6.27160939,118820.0,118810.0,2.69839937]
[1753887760572,6.2631938,118820.0,118810.0,2.69839937]
[1753887761005,6.2631938,118820.0,118810.0,2.69539937]
[1753887761275,0.16092975,118820.0,118810.0,2.94557212]
[1753887761517,0.02476975,118820.0,118810.0,2.94657212]
[1753887761728,0.48510615,118820.0,118810.0,2.94657212]
[1753887761950,0.14510274,118820.0,118810.0,2.94657212]
[1753887762168,0.14506274,118820.0,118810.0,2.94657212]
[1753887763046,0.14506274,118820.0,118810.0,2.87870937]
[1753887763909,0.48506274,118820.0,118810.0,2.87870937]
[1753887764586,0.88229107,118820.0,118810.0,2.72759937]
[1753887764809,5.50083533,118820.0,118810.0,2.72759937]
[1753887765064,5.50067533,118820.0,118810.0,2.87537937]
[1753887765276,0.50067533,118820.0,118810.0,2.87537937]
[1753887765736,0.50067533,118820.0,118810.0,3.54789219]
[1753887765737,0.34788839,118820.0,118810.0,3.54789219]
[1753887765940,0.14392678,118820.0,118810.0,3.54799219]
[1753887766150,0.13604,118820.0,118810.0,3.56482556]
[1753887766409,0.13604,118820.0,118810.0,3.19928541]
[1753887766615,0.13604,118820.0,118810.0,3.13142266]
[1753887767045,0.13604,118820.0,118810.0,3.12442266]
[1753887767477,0.13604,118820.0,118810.0,3.13883945]
[1753887767688,0.00124712,118830.0,118810.0,3.13783945]
[1753887767922,0.13604,118820.0,118810.0,3.01797781]
[1753887768146,0.00124712,118830.0,118820.0,0.0623]
[1753887768362,0.14311987,118830.0,118820.0,0.0623]
[1753887768577,0.15100353,118830.0,118820.0,0.18071]
[1753887769044,0.15100353,118830.0,118820.0,0.18063587]
[1753887769948,0.49100295,118830.0,118820.0,0.18163587]
[1753887770155,0.48311929,118830.0,118820.0,0.18363587]
[1753887771241,0.47720712,118830.0,118820.0,0.18363587]
[1753887771423,0.48311885,118830.0,118820.0,0.18363587]
[1753887772088,0.47720712,118830.0,118820.0,0.18363587]
[1753887772879,0.48311879,118830.0,118820.0,0.18363587]
[1753887773442,0.47720712,118830.0,118820.0,0.18363587]
[1753887773652,0.48311823,118830.0,118820.0,0.18363587]
[1753887773854,0.48311823,118830.0,118820.0,0.18569587]
[1753887776200,0.34715823,118830.0,118820.0,0.18569587]
[1753887776485,0.48271823,118830.0,118820.0,0.18569587]
[1753887777175,0.48263823,118830.0,118820.0,0.18569587]
[1753887777602,0.47672712,118830.0,118820.0,0.18569587]
[1753887779320,0.48263693,118830.0,118820.0,0.18569587]
[1753887779763,0.48263702,118830.0,118820.0,0.18569587]
[1753887780191,0.48467702,118830.0,118820.0,0.18569587]
[1753887780405,0.48467702,118830.0,118820.0,0.18256587]
[1753887780617,0.48467702,118830.0,118820.0,0.03422587]
[1753887780618,0.84179868,118830.0,118820.0,0.03422587]
[1753887780833,0.85272889,118830.0,118820.0,0.003]
[1753887781050,0.88886944,118830.0,118820.0,0.003]
[1753887781270,0.54857754,118830.0,118820.0,0.003]
[1753887781511,0.54016266,118830.0,118820.0,0.003]
[1753887781724,0.54016273,118830.0,118820.0,0.003]
[1753887781948,0.50402266,118830.0,118820.0,0.003]
[1753887782172,6.21977887,118830.0,118820.0,0.003]
[1753887782390,6.04305715,118830.0,118820.0,0.002]
[1753887782606,6.05147246,118830.0,118820.0,0.002]
[1753887782822,5.0,118820.0,118810.0,2.68844773]
[1753887783041,5.14319052,118820.0,118810.0,2.68844773]
[1753887783286,0.49160597,118820.0,118810.0,2.68844773]
[1753887783510,6.00777097,118820.0,118810.0,2.68844773]
[1753887783742,6.20512169,118820.0,118810.0,2.68844773]
[1753887783965,6.6327213,118820.0,118810.0,2.68844773]
[1753887784229,6.84848756,118820.0,118810.0,2.68844773]
[1753887784454,6.84848756,118820.0,118810.0,2.68944773]
[1753887784676,1.89900756,118820.0,118810.0,2.68944773]
[1753887785118,1.91218252,118820.0,118810.0,2.68944773]
[1753887785995,6.91218252,118820.0,118810.0,2.68944773]
[1753887786209,6.91218252,118820.0,118810.0,2.68844773]
[1753887786650,6.91218252,118820.0,118810.0,2.68944773]
[1753887786651,6.86166252,118820.0,118810.0,2.68944773]
[1753887786872,6.86166252,118820.0,118810.0,2.68844773]
[1753887787090,6.88697052,118820.0,118810.0,2.68844773]
[1753887788815,1.88696882,118820.0,118810.0,2.68844773]
[1753887789013,1.88696882,118820.0,118810.0,2.68944773]
[1753887789237,7.08932882,118820.0,118810.0,2.68944773]
[1753887789456,7.08932882,118820.0,118810.0,2.68844773]
[1753887789675,7.09132882,118820.0,118810.0,2.68844773]
[1753887789884,7.09332882,118820.0,118810.0,2.68844773]
[1753887790338,7.11832882,118820.0,118810.0,2.68844773]
[1753887791670,7.11832834,118820.0,118810.0,2.68844773]
[1753887792179,7.11840834,118820.0,118810.0,2.68844773]
[1753887792635,7.09310034,118820.0,118810.0,2.64466534]
[1753887794127,7.10110034,118820.0,118810.0,2.64466534]
[1753887794341,7.12610034,118820.0,118810.0,2.64466534]
[1753887794558,7.17662034,118820.0,118810.0,2.64466534]
[1753887796114,2.17662034,118820.0,118810.0,2.64466534]
[1753887796338,6.82791356,118820.0,118810.0,2.64466534]
[1753887796545,7.17662034,118820.0,118810.0,2.64466534]
[1753887797250,7.55028689,118820.0,118810.0,2.64466534]
[1753887797672,7.57674324,118820.0,118810.0,2.64466534]
[1753887798739,7.52531171,118820.0,118810.0,2.64466534]
[1753887799170,7.52531171,118820.0,118810.0,2.53427588]
[1753887799382,7.17660493,118820.0,118810.0,2.53427588]
[1753887799836,6.62574997,118820.0,118810.0,2.53427588]
[1753887800048,6.90204997,118820.0,118810.0,2.53427588]
[1753887800265,6.41830319,118820.0,118810.0,2.53427588]
[1753887800483,6.71541095,118820.0,118810.0,2.53641588]
[1753887800697,6.69040136,118820.0,118810.0,2.63902588]
[1753887800911,6.48540136,118820.0,118810.0,2.63902588]
[1753887801128,6.35040136,118820.0,118810.0,2.63902588]
[1753887801343,6.48540136,118820.0,118810.0,2.63902588]
[1753887801553,6.82540136,118820.0,118810.0,2.63868644]
[1753887801910,6.84285038,118820.0,118810.0,2.63868644]
[1753887802318,6.70785038,118820.0,118810.0,2.63868644]
[1753887802529,6.84276986,118820.0,118810.0,2.64178644]
[1753887803315,6.855945,118820.0,118810.0,2.64178644]
[1753887803540,6.84019467,118820.0,118810.0,2.64178644]
[1753887803802,6.84794702,118820.0,118810.0,2.64178644]
[1753887804281,6.84790702,118820.0,118810.0,2.64178644]
[1753887804507,6.71302702,118820.0,118810.0,2.64178644]
[1753887804739,6.85420211,118820.0,118810.0,2.67258644]
[1753887804977,6.86261813,118820.0,118810.0,2.67258644]
[1753887805220,5.2670402,118820.0,118810.0,2.70418644]
[1753887805450,6.12257809,118820.0,118810.0,2.70418644]
[1753887805669,6.13940976,118820.0,118810.0,2.70418644]
[1753887805885,6.13099389,118820.0,118810.0,2.70418644]
[1753887806087,6.23092021,118820.0,118810.0,2.70418644]
[1753887806303,6.39924436,118820.0,118810.0,2.70418644]
[1753887806514,6.28985855,118820.0,118810.0,2.70418644]
[1753887806723,6.23192253,118820.0,118810.0,2.70418644]
[1753887807186,6.41068038,118820.0,118810.0,2.70108644]
[1753887807388,6.59384927,118820.0,118810.0,2.63654644]
[1753887807807,6.59182927,118820.0,118810.0,2.63861644]
[1753887808021,6.59182927,118820.0,118810.0,2.67252644]
[1753887808232,6.58543347,118820.0,118810.0,2.66931644]